bitfinex/quotes_BTCUSD_20250505
["timestamp","ask_amount","ask_price","bid_price","bid_amount"]
[1746444889776,5.50217864,94516.0,94515.0,11.61807572]
[1746444889934,5.5265087,94516.0,94515.0,11.61807572]
[1746444890382,5.5265087,94516.0,94515.0,11.57975616]
[1746444890564,5.73811308,94516.0,94515.0,11.57975616]
[1746444890762,5.73811308,94516.0,94515.0,11.38694916]
[1746444890968,5.71125481,94516.0,94515.0,10.793962]
[1746444891307,5.59716329,94516.0,94515.0,10.54276423]
[1746444891512,5.59716329,94516.0,94515.0,10.46732092]
[1746444891794,5.59716329,94516.0,94515.0,10.44418165]
[1746444892001,5.59716329,94516.0,94515.0,10.43958165]
[1746444892203,5.59716329,94516.0,94515.0,10.22713365]
[1746444892204,5.37176923,94516.0,94515.0,10.22713365]
[1746444892427,5.34476923,94516.0,94515.0,10.22503365]
[1746444892584,5.21319323,94516.0,94515.0,10.23979593]
[1746444892801,5.10085823,94516.0,94515.0,10.25619593]
[1746444893022,4.86534723,94516.0,94515.0,10.25619593]
[1746444893182,4.89234723,94516.0,94515.0,10.25619593]
[1746444893378,4.89234723,94516.0,94515.0,10.22319593]
[1746444893627,4.89234723,94516.0,94515.0,10.13497575]
[1746444893826,4.91934723,94516.0,94515.0,10.13497575]
[1746444894026,4.89234723,94516.0,94515.0,10.13497575]
[1746444894430,4.91934723,94516.0,94515.0,10.13497575]
[1746444894609,4.91920397,94516.0,94515.0,10.13497575]
[1746444894812,4.91920397,94516.0,94515.0,10.08800227]
[1746444895070,4.91920397,94516.0,94515.0,10.08100227]
[1746444895393,4.91920397,94516.0,94515.0,9.86510427]
[1746444895583,4.67763397,94516.0,94515.0,9.31426553]
[1746444895786,4.63066049,94516.0,94515.0,9.31426553]
[1746444895987,4.61775426,94516.0,94515.0,9.27426553]
[1746444896336,4.61775426,94516.0,94515.0,8.65954227]
[1746444896337,4.03313126,94516.0,94515.0,8.65954227]
[1746444896535,4.02859032,94516.0,94515.0,8.60808307]
[1746444897161,4.02859032,94516.0,94515.0,7.21214745]
[1746444897162,3.74208332,94516.0,94515.0,7.21214745]
[1746444897559,3.76908332,94516.0,94515.0,7.21214745]
[1746444897971,2.65809252,94516.0,94515.0,7.21214745]
[1746444898157,7.65809252,94516.0,94515.0,7.21214745]
[1746444898362,7.65809252,94516.0,94515.0,7.21024745]
[1746444898836,7.61029032,94516.0,94515.0,7.19748945]
[1746444899038,7.61029032,94516.0,94515.0,7.19633545]
[1746444899256,7.63729032,94516.0,94515.0,7.19633545]
[1746444900422,5.43704532,94516.0,94515.0,7.18675945]
[1746444900632,4.85312349,94516.0,94515.0,7.18675945]
[1746444901037,4.83858264,94516.0,94515.0,7.18356745]
[1746444901212,4.60403964,94516.0,94515.0,7.20229332]
[1746444901536,4.4041829,94516.0,94515.0,7.20229332]
[1746444901746,4.60403964,94516.0,94515.0,7.20229332]
[1746444902274,5.08578364,94516.0,94515.0,7.1998106]
[1746444902422,4.92905564,94516.0,94515.0,7.1998106]
[1746444902629,4.54296264,94516.0,94515.0,7.1998106]
[1746444903522,4.51596264,94516.0,94515.0,7.1998106]
[1746444903807,4.3931059,94516.0,94515.0,7.1998106]
[1746444904030,4.54296264,94516.0,94515.0,7.18703967]
[1746444904161,4.54296264,94516.0,94515.0,7.18650567]
[1746444904565,4.55750349,94516.0,94515.0,7.18650567]
[1746444904779,4.40764675,94516.0,94515.0,7.18650567]
[1746444904977,4.55750349,94516.0,94515.0,7.18650567]
[1746444905205,5.04922349,94516.0,94515.0,7.18650567]
[1746444905614,4.55750349,94516.0,94515.0,7.18650567]
[1746444905814,4.54296264,94516.0,94515.0,7.18650567]
[1746444906235,4.55750349,94516.0,94515.0,7.18650567]
[1746444906402,2.71808764,94516.0,94515.0,7.18650567]
[1746444906650,2.64271064,94516.0,94515.0,7.18650567]
[1746444907598,2.53828125,94516.0,94515.0,7.18650567]
[1746444907819,2.48002399,94516.0,94515.0,7.16196801]
[1746444908463,2.38016725,94516.0,94515.0,7.16196801]
[1746444908663,2.46756484,94516.0,94515.0,7.16196801]
[1746444908898,2.99456484,94516.0,94515.0,7.14921901]
[1746444909229,2.99456484,94516.0,94515.0,7.14221901]
[1746444909623,2.97796484,94516.0,94515.0,7.14221901]
[1746444910073,2.97796484,94516.0,94515.0,7.06680187]
[1746444911502,2.97796484,94516.0,94515.0,7.05403363]
[1746444912481,2.97796484,94516.0,94515.0,6.05403363]
[1746444913813,2.97796484,94516.0,94515.0,5.05403363]
[1746444914233,4.08821284,94516.0,94515.0,5.04126532]
[1746444915229,4.28313784,94516.0,94515.0,5.04126532]
[1746444915464,3.78041506,94516.0,94515.0,5.03488132]
[1746444915708,3.70023206,94516.0,94515.0,5.03168932]
[1746444915909,3.58315206,94516.0,94515.0,5.03168932]
[1746444916078,3.58315206,94516.0,94515.0,5.02849732]
[1746444916279,3.58315206,94516.0,94515.0,5.02149732]
[1746444916682,3.55615206,94516.0,94515.0,5.02149732]
[1746444916881,3.58315206,94516.0,94515.0,5.02149732]
[1746444917624,3.58315206,94516.0,94515.0,5.00569732]
[1746444917931,3.58315206,94516.0,94515.0,5.00039732]
[1746444918159,3.58315206,94516.0,94515.0,5.01539732]
[1746444918362,3.44417606,94516.0,94515.0,5.01539732]
[1746444918521,3.44417606,94516.0,94515.0,5.01439732]
[1746444920009,3.73534806,94516.0,94515.0,5.01439732]
[1746444920867,3.71922306,94516.0,94515.0,5.01439732]
[1746444921064,3.44142106,94516.0,94515.0,5.01439732]
[1746444921350,3.35152106,94516.0,94515.0,4.01439732]
[1746444922498,3.35152106,94516.0,94515.0,3.01439732]
[1746444923372,3.35152106,94516.0,94515.0,3.00739732]
[1746444924543,3.35152106,94516.0,94515.0,2.99462819]
[1746444924752,3.35152106,94516.0,94515.0,2.97962819]
[1746444925332,3.84308106,94516.0,94515.0,2.97962819]
[1746444925901,3.84308106,94516.0,94515.0,2.99582819]
[1746444927136,3.70264106,94516.0,94515.0,2.99582819]
[1746444927361,3.35152106,94516.0,94515.0,2.99582819]
[1746444928841,3.35152106,94516.0,94515.0,1.99582819]
[1746444930015,3.35152106,94516.0,94515.0,0.99582819]
[1746444930640,3.35152106,94516.0,94515.0,0.99263619]
[1746444930888,3.35152106,94516.0,94515.0,0.97988819]
[1746444931094,3.35152106,94516.0,94515.0,0.97288819]
[1746444932416,3.35152106,94516.0,94515.0,0.95668819]
[1746444933470,3.35152106,94516.0,94515.0,0.94098819]
[1746444933680,3.37544685,94516.0,94515.0,0.94098819]
[1746444934141,3.35152106,94516.0,94515.0,0.94098819]
[1746444934733,3.32452106,94516.0,94515.0,0.928218]
[1746444934930,3.35152106,94516.0,94515.0,0.928218]
[1746444935333,3.49196106,94516.0,94515.0,0.928218]
[1746444937137,3.35152106,94516.0,94515.0,0.928218]
[1746444937725,3.35152106,94516.0,94515.0,0.927918]
[1746444938247,3.35152106,94516.0,94515.0,0.920918]
[1746444939292,3.35152106,94516.0,94515.0,0.90814751]
[1746444939729,3.35152106,94516.0,94515.0,0.90810751]
[1746444943624,3.35069671,94516.0,94515.0,0.90810751]
[1746444943925,2.98237771,94516.0,94515.0,0.8890435]
[1746444944239,6.33289576,94516.0,94515.0,0.8890435]
[1746444944445,6.01965176,94516.0,94515.0,0.8890435]
[1746444944650,5.05061676,94516.0,94515.0,0.8890435]
[1746444944992,5.10277971,94516.0,94515.0,0.8762733]
[1746444945351,5.10277971,94516.0,94515.0,0.8692733]
[1746444945564,5.10277971,94516.0,94515.0,0.8660813]
[1746444946518,5.10277971,94516.0,94515.0,0.8813813]
[1746444946826,3.63291971,94516.0,94515.0,0.8964813]
[1746444947019,3.43800071,94516.0,94515.0,0.8964813]
[1746444947646,3.43800071,94516.0,94515.0,0.8837353]
[1746444948001,3.43800071,94516.0,94490.0,0.08402964]
[1746444948002,0.26852452,94511.0,94510.0,11.30395312]
[1746444948203,0.74557652,94511.0,94510.0,11.30405861]
[1746444948403,0.75067532,94511.0,94510.0,11.30405861]
[1746444948599,0.77052616,94511.0,94510.0,11.30405861]
[1746444948806,0.73392416,94511.0,94510.0,11.30405861]
[1746444949232,0.70004416,94511.0,94510.0,10.29128974]
[1746444949549,1.20004416,94511.0,94510.0,10.29128974]
[1746444949711,1.22704416,94511.0,94510.0,10.29098974]
[1746444949913,1.72704416,94511.0,94510.0,10.29098974]
[1746444950228,1.72704416,94511.0,94510.0,9.29098974]
[1746444950820,1.72704416,94511.0,94510.0,8.29098974]
[1746444951039,1.72704416,94511.0,94510.0,8.29058974]
[1746444952320,1.72704416,94511.0,94510.0,8.28358974]
[1746444952522,1.72687126,94511.0,94510.0,8.28358974]
[1746444953769,1.72687126,94511.0,94510.0,8.28268974]
[1746444954398,1.93848683,94511.0,94510.0,8.28268974]
[1746444955938,1.93848683,94511.0,94510.0,8.26992056]
[1746444957930,1.83863009,94511.0,94510.0,8.26992056]
[1746444958143,1.93848683,94511.0,94510.0,8.26992056]
[1746444959420,1.93848683,94511.0,94510.0,8.26292056]
[1746444960728,1.74461683,94511.0,94510.0,8.25972856]
[1746444960945,2.32448283,94511.0,94510.0,8.25972856]
[1746444961198,2.32448283,94511.0,94510.0,8.24695939]
[1746444962993,2.27340183,94511.0,94510.0,8.24695939]
[1746444964547,2.12343583,94511.0,94510.0,8.24695939]
[1746444965314,2.12343583,94511.0,94510.0,8.22545395]
[1746444965890,2.12343583,94511.0,94510.0,8.2126847]
[1746444966459,2.12343583,94511.0,94510.0,8.2048847]
[1746444967680,2.15363583,94511.0,94510.0,8.15277113]
[1746444967859,2.67434162,94511.0,94510.0,8.02749813]
[1746444968058,3.15041583,94511.0,94510.0,8.02749813]
[1746444968925,3.12341583,94511.0,94510.0,8.02749813]
[1746444969124,3.15622054,94511.0,94510.0,8.02749813]
[1746444969357,3.18322054,94511.0,94510.0,8.02749813]
[1746444969909,3.18322054,94511.0,94510.0,7.88886113]
[1746444970133,3.15041583,94511.0,94510.0,7.88886113]
[1746444970496,3.15041583,94511.0,94510.0,7.85436515]
[1746444970878,3.15041583,94511.0,94510.0,7.77641243]
[1746444971118,3.12341583,94511.0,94510.0,7.77641243]
[1746444971288,3.15041583,94511.0,94510.0,7.77641243]
[1746444971484,3.15041583,94511.0,94510.0,7.76364116]
[1746444971717,3.20041583,94511.0,94510.0,7.76364116]
[1746444971850,3.25717314,94511.0,94510.0,7.71006019]
[1746444972184,3.20041583,94511.0,94510.0,7.71006019]
[1746444972393,3.23261424,94511.0,94510.0,7.71006019]
[1746444972684,3.20561424,94511.0,94510.0,7.71006019]
[1746444972887,3.23261424,94511.0,94510.0,7.71006019]
[1746444973034,3.23261424,94511.0,94510.0,7.63462979]
[1746444973486,2.82159683,94511.0,94510.0,7.63462979]
[1746444973720,7.62188583,94511.0,94510.0,7.62762979]
[1746444974055,7.54822883,94511.0,94510.0,7.62762979]
[1746444974249,7.52012883,94511.0,94510.0,7.62762979]
[1746444974455,7.42982583,94511.0,94510.0,7.62762979]
[1746444974659,7.42982583,94511.0,94510.0,7.48306579]
[1746444974870,7.46202424,94511.0,94510.0,7.48306579]
[1746444975327,7.95362424,94511.0,94510.0,7.48306579]
[1746444975514,7.95362424,94511.0,94510.0,7.47817379]
[1746444975700,7.43502424,94511.0,94510.0,7.47817379]
[1746444976117,7.46202424,94511.0,94510.0,7.46370083]
[1746444976302,7.42982583,94511.0,94510.0,7.46290083]
[1746444976503,7.42982583,94511.0,94510.0,7.31832183]
[1746444976669,7.42982583,94511.0,94510.0,7.30191183]
[1746444977126,4.68993183,94511.0,94510.0,7.30061183]
[1746444977711,4.66293183,94511.0,94510.0,7.13960411]
[1746444977916,4.68993183,94511.0,94510.0,7.13960411]
[1746444978292,4.68993183,94511.0,94510.0,7.13450411]
[1746444979484,4.98993183,94511.0,94510.0,7.13450411]
[1746444979684,4.79533424,94511.0,94510.0,7.12436186]
[1746444979912,4.89519098,94511.0,94510.0,7.12436186]
[1746444980530,4.90973183,94511.0,94510.0,7.11736186]
[1746444981086,3.67867524,94511.0,94510.0,7.11736186]
[1746444981204,3.36790598,94511.0,94510.0,7.13376186]
[1746444981695,3.38244683,94511.0,94510.0,7.12099122]
[1746444982065,3.20790598,94511.0,94510.0,7.13719122]
[1746444982272,3.00727024,94511.0,94510.0,7.13719122]
[1746444982616,3.03427024,94511.0,94510.0,7.13719122]
[1746444982912,3.14866783,94511.0,94510.0,7.13719122]
[1746444983700,3.12166783,94511.0,94510.0,7.13719122]
[1746444984101,3.45506783,94511.0,94510.0,7.13719122]
[1746444984305,3.40966783,94511.0,94510.0,7.13719122]
[1746444984689,3.40966783,94511.0,94510.0,7.12099122]
[1746444985469,3.90126783,94511.0,94510.0,7.12099122]
[1746444985740,3.90126783,94511.0,94510.0,6.97095122]
[1746444985943,3.40966783,94511.0,94510.0,6.94974465]
[1746444986595,3.40966783,94511.0,94510.0,6.93334465]
[1746444986744,3.44167618,94511.0,94510.0,6.92057567]
[1746444987760,3.44167618,94511.0,94510.0,6.91357567]
[1746444987965,3.44167618,94511.0,94510.0,6.87483073]
[1746444988369,3.44170053,94511.0,94510.0,6.87483073]
[1746444989842,3.44170053,94511.0,94510.0,6.71202273]
[1746444990618,3.47280053,94511.0,94510.0,6.70174673]
[1746444991419,3.47280053,94511.0,94510.0,6.62632579]
[1746444991645,3.47280053,94511.0,94510.0,6.62532579]
[1746444991944,3.47280053,94511.0,94510.0,6.6094558]
[1746444992150,3.47280053,94511.0,94510.0,6.6064558]
[1746444992290,3.47280053,94511.0,94510.0,6.6046558]
[1746444992488,3.52182769,94511.0,94510.0,6.6030558]
[1746444992694,3.47279885,94511.0,94510.0,6.6030558]
[1746444992937,3.47279885,94511.0,94510.0,6.20507355]
[1746444993812,3.44579885,94511.0,94510.0,6.20507355]
[1746444994031,3.47279885,94511.0,94510.0,6.20507355]
[1746444994759,3.49979885,94511.0,94510.0,6.19637355]
[1746444994940,3.47279885,94511.0,94510.0,6.19537355]
[1746444995280,3.99139885,94511.0,94510.0,6.19047355]
[1746444995640,3.99139885,94511.0,94510.0,6.18127355]
[1746444996034,3.97639885,94511.0,94510.0,6.18127355]
[1746444996376,3.96029885,94511.0,94510.0,6.17887355]
[1746444996744,3.9282905,94511.0,94510.0,6.16610288]
[1746444997363,3.92829202,94511.0,94510.0,6.16610288]
[1746444998099,3.41681699,94511.0,94510.0,6.16610288]
[1746444998333,3.41681699,94511.0,94510.0,6.16440288]
[1746444999422,3.4459004,94511.0,94510.0,6.16220288]
[1746444999582,3.4778004,94511.0,94510.0,6.16000288]
[1746444999950,3.4621004,94511.0,94510.0,6.14930288]
[1746445000100,3.4621004,94511.0,94510.0,6.17620288]
[1746445000101,3.3124194,94511.0,94510.0,6.17620288]
[1746445000834,3.42681699,94511.0,94510.0,6.17620288]
[1746445001033,3.37281699,94511.0,94510.0,6.17620288]
[1746445001239,3.39981699,94511.0,94510.0,6.17620288]
[1746445001819,3.39981699,94511.0,94510.0,6.16920288]
[1746445002216,3.29996025,94511.0,94510.0,6.16920288]
[1746445002621,3.39981699,94511.0,94510.0,6.16920288]
[1746445003024,3.42681699,94511.0,94510.0,6.16920288]
[1746445003230,3.03854599,94511.0,94510.0,6.16920288]
[1746445003434,5.74958999,94511.0,94510.0,6.16920288]
[1746445004947,5.74958999,94511.0,94510.0,6.13430977]
[1746445005409,5.74958999,94511.0,94510.0,6.0376856]
[1746445005615,5.74958999,94511.0,94510.0,5.9963096]
[1746445005810,5.7786734,94511.0,94510.0,5.95190011]
[1746445006016,5.74958999,94511.0,94510.0,5.95190011]
[1746445006224,5.74958999,94511.0,94510.0,5.94551611]
[1746445006477,5.7786734,94511.0,94510.0,5.94551611]
[1746445007749,5.74958999,94511.0,94510.0,5.94551611]
[1746445008129,5.75958999,94511.0,94510.0,5.94551611]
[1746445008347,6.17228999,94511.0,94510.0,5.94551611]
[1746445008943,6.17228999,94511.0,94510.0,5.77202411]
[1746445010463,6.2013734,94511.0,94510.0,5.77202411]
[1746445011725,6.17228999,94511.0,94510.0,5.77202411]
[1746445011879,6.05364399,94511.0,94510.0,5.77202411]
[1746445014124,6.05364399,94511.0,94510.0,5.60551711]
[1746445014463,6.0827274,94511.0,94510.0,5.60551711]
[1746445014962,6.0827274,94511.0,94510.0,5.60341711]
[1746445015152,7.6457444,94511.0,94510.0,5.60341711]
[1746445015367,8.1373044,94511.0,94510.0,5.60341711]
[1746445015797,8.1373044,94511.0,94510.0,5.60333311]
[1746445015989,8.1373044,94511.0,94510.0,5.59633311]
[1746445016191,7.4328534,94511.0,94510.0,5.59453311]
[1746445016314,7.2357964,94511.0,94510.0,5.59453311]
[1746445016954,7.2130664,94511.0,94510.0,5.59453311]
[1746445017157,7.2130664,94511.0,94510.0,5.43500411]
[1746445017595,7.1492794,94511.0,94510.0,5.43500411]
[1746445018133,6.9793014,94511.0,94510.0,5.43500411]
[1746445018285,6.95021799,94511.0,94510.0,5.43500411]
[1746445018661,6.95021799,94511.0,94510.0,5.43400411]
[1746445020370,6.95021799,94511.0,94510.0,5.43310411]
[1746445020585,6.95021799,94511.0,94510.0,5.42991211]
[1746445020793,6.95021799,94511.0,94510.0,5.42352811]
[1746445021010,6.95021799,94511.0,94510.0,5.42102811]
[1746445021445,6.95021799,94511.0,94510.0,5.25788511]
[1746445021667,6.68078899,94511.0,94510.0,5.25788511]
[1746445021872,6.08737299,94511.0,94510.0,5.25788511]
[1746445023129,6.08737299,94511.0,94510.0,5.25088511]
[1746445023503,6.08737299,94511.0,94510.0,4.99884093]
[1746445025514,6.1164564,94511.0,94510.0,4.97763481]
[1746445026593,6.1314564,94511.0,94510.0,4.57652078]
[1746445026841,6.1479564,94511.0,94510.0,4.57652078]
[1746445027606,6.1164564,94511.0,94510.0,4.57652078]
[1746445027802,5.8685824,94511.0,94510.0,4.57652078]
[1746445028010,5.72932299,94511.0,94510.0,4.35876578]
[1746445028224,5.63542999,94511.0,94510.0,4.35876578]
[1746445028736,5.58447499,94511.0,94510.0,4.35876578]
[1746445029956,5.6135584,94511.0,94510.0,4.35876578]
[1746445030154,5.6135584,94511.0,94510.0,4.35176578]
[1746445030561,3.4903294,94511.0,94510.0,4.35176578]
[1746445030763,6.5651534,94511.0,94510.0,4.35176578]
[1746445031106,6.4809504,94511.0,94510.0,4.35176578]
[1746445031904,6.5128504,94511.0,94510.0,4.35176578]
[1746445032701,6.5128504,94511.0,94510.0,4.3505965]
[1746445032893,6.4588504,94511.0,94510.0,4.06535647]
[1746445033055,6.4858504,94511.0,94510.0,4.06535647]
[1746445033260,6.4858504,94511.0,94510.0,4.06355647]
[1746445033459,6.4858504,94511.0,94510.0,4.01128815]
[1746445033994,6.4588504,94511.0,94510.0,4.01128815]
[1746445034190,6.4858504,94511.0,94510.0,4.00048815]
[1746445035349,6.9774104,94511.0,94510.0,4.00048815]
[1746445035558,6.9774104,94511.0,94510.0,3.99729615]
[1746445035895,7.0044104,94511.0,94510.0,3.99039615]
[1746445036080,6.5128504,94511.0,94510.0,3.99039615]
[1746445036573,6.5128504,94511.0,94510.0,3.96929615]
[1746445036789,6.4588504,94511.0,94510.0,3.96929615]
[1746445037028,6.4858504,94511.0,94510.0,3.96929615]
[1746445037177,6.4858504,94511.0,94510.0,3.96229615]
[1746445038391,6.4398024,94511.0,94510.0,3.96229615]
[1746445039275,6.4398024,94511.0,94510.0,3.72223315]
[1746445039841,6.4298024,94511.0,94510.0,3.72223315]
[1746445040245,6.4028024,94511.0,94510.0,3.72223315]
[1746445040569,6.4298024,94511.0,94510.0,3.72223315]
[1746445040920,6.4298024,94511.0,94510.0,3.57433315]
[1746445041325,6.4298024,94511.0,94510.0,2.52364015]
[1746445041523,6.4298024,94511.0,94510.0,2.52194015]
[1746445041711,6.44644003,94511.0,94510.0,2.46997315]
[1746445042120,6.44644003,94511.0,94510.0,2.45337515]
[1746445043800,6.44644003,94511.0,94510.0,2.45297515]
[1746445044425,6.44644003,94511.0,94510.0,2.33865895]
[1746445044567,6.44644003,94511.0,94510.0,2.32996295]
[1746445044771,6.44644003,94511.0,94510.0,2.06827295]
[1746445045231,6.93804003,94511.0,94510.0,2.04537054]
[1746445045372,6.93804003,94511.0,94510.0,2.04447154]
[1746445045576,6.44644003,94511.0,94510.0,1.99159147]
[1746445045782,6.44644003,94511.0,94510.0,1.58439364]
[1746445046405,6.49644003,94511.0,94510.0,1.58439364]
[1746445046818,6.46944003,94511.0,94510.0,1.58439364]
[1746445047176,6.49644003,94511.0,94510.0,1.58439364]
[1746445047380,6.49644003,94511.0,94510.0,1.58259323]
[1746445048598,6.49644003,94511.0,94500.0,0.00212]
[1746445048599,0.53857605,94506.0,94505.0,11.00104648]
[1746445048804,3.60821018,94506.0,94505.0,10.94864304]
[1746445049008,3.83005358,94506.0,94505.0,10.94864304]
[1746445049425,1.59028158,94506.0,94505.0,10.94864304]
[1746445049659,3.83005358,94506.0,94505.0,10.94864304]
[1746445049793,3.83005358,94506.0,94505.0,10.91578105]
[1746445049994,3.85431508,94506.0,94505.0,10.91578105]
[1746445050200,3.82731508,94506.0,94505.0,10.88625289]
[1746445050512,4.85431508,94506.0,94505.0,10.85652834]
[1746445050740,4.85431508,94506.0,94505.0,10.8326875]
[1746445050921,4.82688299,94506.0,94505.0,10.81126529]
[1746445051479,4.82688299,94506.0,94505.0,10.65368186]
[1746445051674,4.82688299,94506.0,94505.0,10.52784286]
[1746445051916,4.82688299,94506.0,94505.0,10.44497024]
[1746445052320,4.82688299,94506.0,94505.0,10.3937884]
[1746445052521,4.82688299,94506.0,94505.0,10.3867884]
[1746445052725,4.82688299,94506.0,94505.0,10.3342623]
[1746445053381,5.23958299,94506.0,94505.0,10.3342623]
[1746445053551,5.23958299,94506.0,94505.0,10.32518288]
[1746445054799,5.23958299,94506.0,94505.0,10.32178227]
[1746445054940,5.23958299,94506.0,94505.0,10.30428227]
[1746445055145,5.23958299,94506.0,94505.0,10.29428227]
[1746445055345,5.73126299,94506.0,94505.0,9.27378227]
[1746445055679,5.23958299,94506.0,94505.0,9.26827278]
[1746445057356,5.23958299,94506.0,94505.0,9.19282136]
[1746445058560,5.73958299,94506.0,94505.0,9.19282136]
[1746445058901,5.73958299,94506.0,94505.0,9.18922136]
[1746445059103,5.73958299,94506.0,94505.0,9.18052136]
[1746445059530,5.73958299,94506.0,94505.0,9.14442136]
[1746445060169,5.73958299,94506.0,94505.0,9.13382136]
[1746445060460,5.58972625,94506.0,94505.0,9.13382136]
[1746445060660,5.27805982,94506.0,94505.0,9.13382136]
[1746445062462,5.27805982,94506.0,94505.0,9.12302136]
[1746445064011,3.45284082,94506.0,94505.0,9.12302136]
[1746445064166,6.46368782,94506.0,94505.0,9.11942136]
[1746445064593,5.07445782,94506.0,94505.0,9.11942136]
[1746445065102,4.99335782,94506.0,94505.0,9.11942136]
[1746445065299,5.13383782,94506.0,94505.0,8.11942136]
[1746445065499,4.99335782,94506.0,94505.0,8.09502369]
[1746445065700,4.99335782,94506.0,94505.0,8.08313969]
[1746445066118,4.99335782,94506.0,94505.0,8.07994769]
[1746445066708,4.99335782,94506.0,94505.0,8.07294769]
[1746445072250,3.37174082,94506.0,94505.0,8.07294769]
[1746445072478,7.73317282,94506.0,94505.0,8.07294769]
[1746445072707,7.22635782,94506.0,94505.0,8.07294769]
[1746445072935,6.99458282,94506.0,94505.0,8.07294769]
[1746445073850,6.99458282,94506.0,94505.0,8.06594769]
[1746445074070,6.93310282,94506.0,94505.0,8.06594769]
[1746445074321,6.63805282,94506.0,94505.0,8.06594769]
[1746445075189,6.63805282,94506.0,94505.0,8.04001607]
[1746445075190,6.65793252,94506.0,94505.0,8.04001607]
[1746445075397,7.14965252,94506.0,94505.0,8.04001607]
[1746445075610,7.14965252,94506.0,94505.0,8.00169911]
[1746445075820,6.00826052,94506.0,94505.0,8.00169911]
[1746445076277,6.0346432,94506.0,94505.0,8.00169911]
[1746445076486,6.04036052,94506.0,94505.0,8.00169911]
[1746445077134,6.07111008,94506.0,94505.0,8.00169911]
[1746445077354,6.07111008,94506.0,94505.0,7.99429911]
[1746445078275,6.07111008,94506.0,94505.0,7.91835959]
[1746445079209,6.07112159,94506.0,94505.0,7.91835959]
[1746445079605,6.07112159,94506.0,94505.0,7.91665959]
[1746445079996,6.05123038,94506.0,94505.0,7.91665959]
[1746445080212,6.07112158,94506.0,94505.0,7.91665959]
[1746445080413,6.07112152,94506.0,94505.0,7.91665959]
[1746445080614,6.07112152,94506.0,94505.0,7.91346759]
[1746445080752,6.07112156,94506.0,94505.0,7.90646759]
[1746445080953,6.07112156,94506.0,94505.0,7.90376759]
[1746445081460,6.07112188,94506.0,94505.0,7.90376759]
[1746445081840,6.07112045,94506.0,94505.0,7.90376759]
[1746445082054,6.07112044,94506.0,94505.0,7.89756759]
[1746445082536,6.07112044,94506.0,94505.0,7.89526759]
[1746445082783,6.07112044,94506.0,94505.0,7.89166759]
[1746445082979,6.05123038,94506.0,94505.0,7.88919469]
[1746445083199,6.07112039,94506.0,94505.0,7.88919469]
[1746445083677,6.07112039,94506.0,94505.0,7.86284945]
[1746445083858,6.11750307,94506.0,94505.0,6.53998145]
[1746445084039,6.09112039,94506.0,94505.0,5.70761145]
[1746445084471,6.09112039,94506.0,94505.0,5.63766708]
[1746445084670,6.09112039,94506.0,94505.0,5.60546708]
[1746445085090,6.07123038,94506.0,94505.0,5.60546708]
[1746445085270,6.56295038,94506.0,94505.0,5.56586141]
[1746445085943,6.56295038,94506.0,94505.0,5.51356141]
[1746445086144,7.19129338,94506.0,94505.0,5.50856141]
[1746445086345,7.19129338,94506.0,94505.0,5.50266141]
[1746445086551,7.19129338,94506.0,94505.0,5.50186141]
[1746445086749,7.19129338,94506.0,94505.0,5.44199841]
[1746445088223,6.69957338,94506.0,94505.0,5.43399841]
[1746445088419,3.45459038,94506.0,94505.0,5.43399841]
[1746445088647,6.69737038,94506.0,94505.0,5.43399841]
[1746445089044,6.69737038,94506.0,94505.0,5.43339841]
[1746445089516,6.67763638,94506.0,94505.0,5.41366441]
[1746445089903,6.70401906,94506.0,94505.0,5.36156064]
[1746445090112,5.79375606,94506.0,94505.0,4.4110537]
[1746445090631,5.84375606,94506.0,94505.0,4.3953517]
[1746445091941,4.46097006,94506.0,94505.0,3.0163297]
[1746445092786,4.43397006,94506.0,94505.0,3.0163297]
[1746445093142,4.46097006,94506.0,94505.0,3.0163297]
[1746445093866,4.46097006,94506.0,94505.0,3.0107297]
[1746445094268,4.46097006,94506.0,94505.0,3.0076297]
[1746445094422,4.46097006,94506.0,94505.0,3.0067297]
[1746445094914,4.46097006,94506.0,94505.0,2.9982297]
[1746445095441,4.46097006,94506.0,94505.0,2.9978297]
[1746445095643,4.46097006,94506.0,94505.0,2.9934377]
[1746445095835,4.43458738,94506.0,94505.0,2.9934377]
[1746445096608,4.44793211,94506.0,94505.0,2.9844377]
[1746445097397,4.42093211,94506.0,94505.0,2.9772377]
[1746445097777,4.44793211,94506.0,94505.0,2.9772377]
[1746445097919,4.44793211,94506.0,94505.0,2.9715377]
[1746445098120,4.41718255,94506.0,94505.0,2.9715377]
[1746445099304,4.43382492,94506.0,94505.0,2.95279534]
[1746445099706,4.41718255,94506.0,94505.0,2.95279534]
[1746445099918,4.47431479,94506.0,94505.0,2.95279534]
[1746445100341,4.47431479,94506.0,94505.0,2.95039534]
[1746445100547,4.47431479,94506.0,94505.0,2.93722608]
[1746445100720,4.44731479,94506.0,94505.0,2.59642778]
[1746445100942,4.44731479,94506.0,94505.0,2.5422419]
[1746445101354,4.47431479,94506.0,94505.0,2.4942689]
[1746445101557,4.44356523,94506.0,94505.0,2.457614]
[1746445101759,4.44356523,94506.0,94505.0,2.22082334]
[1746445101957,3.51356823,94506.0,94505.0,2.21382334]
[1746445102155,3.51356823,94506.0,94505.0,2.21337084]
[1746445102156,8.51356823,94506.0,94505.0,2.21337084]
[1746445102359,8.54347843,94506.0,94505.0,2.15979274]
[1746445102566,8.53312338,94506.0,94505.0,2.15979274]
[1746445102939,8.53312338,94506.0,94505.0,2.12975774]
[1746445103142,8.53312338,94506.0,94505.0,2.05179474]
[1746445103344,8.53312338,94506.0,94505.0,2.04381142]
[1746445103915,8.53021318,94506.0,94505.0,2.04381142]
[1746445104139,8.50321318,94506.0,94505.0,2.04381142]
[1746445104335,8.4768305,94506.0,94505.0,2.04381142]
[1746445104571,8.1171745,94506.0,94505.0,2.0358281]
[1746445104782,8.1171745,94506.0,94505.0,2.03099283]
[1746445104953,8.1171745,94506.0,94505.0,2.02629004]
[1746445105153,8.2576545,94506.0,94505.0,2.02629004]
[1746445105355,8.6089345,94506.0,94505.0,1.8917623]
[1746445105583,8.6089345,94506.0,94505.0,1.88377898]
[1746445106653,8.6089345,94506.0,94505.0,1.80033004]
[1746445107208,8.6089345,94506.0,94505.0,1.80006949]
[1746445107470,8.1171745,94506.0,94505.0,1.80006949]
[1746445107646,8.1171745,94506.0,94505.0,1.79208617]
[1746445108457,8.1171745,94506.0,94505.0,1.77544112]
[1746445108657,8.1171745,94506.0,94505.0,1.77202155]
[1746445109064,8.1171745,94506.0,94505.0,1.76502155]
[1746445109219,8.1171745,94506.0,94505.0,1.75862155]
[1746445109760,7.4794315,94506.0,94505.0,1.75862155]
[1746445109995,7.3524655,94506.0,94505.0,1.75862155]
[1746445110393,7.3524655,94506.0,94505.0,1.70620373]
[1746445110593,7.3524655,94506.0,94505.0,1.70301173]
[1746445111167,7.3524655,94506.0,94505.0,1.70151173]
[1746445111372,7.3524655,94506.0,94505.0,1.68486666]
[1746445111602,7.3524655,94506.0,94505.0,1.68416666]
[1746445112469,7.3524655,94506.0,94505.0,1.67924709]
[1746445112658,7.3524655,94506.0,94505.0,1.6269653]
[1746445113456,7.3524655,94506.0,94505.0,1.61444573]
[1746445113899,7.3524655,94506.0,94505.0,1.53898009]